[Event "*** SCC Grand Prix: Titled Tuesday Blitz"]
[Site "Chess.com"]
[Date "2020.06.09"]
[Round "3"]
[White "Savva09022009"]
[Black "LiverpooL174"]
[Result "1/2-1/2"]
[WhiteElo "2437"]
[BlackElo "2668"]
[TimeControl "180+1"]
[EndTime "9:28:10 PDT"]
[Termination "Game drawn - insufficient material"]

1. d4 {[%clk 0:03:00.9]} 1... Nf6 {[%clk 0:02:59.2]} 2. Nc3 {[%clk 0:03:00.8]}
2... d6 {[%clk 0:03:00.1]} 3. Bf4 {[%clk 0:03:01.2]} 3... Nbd7 {[%clk
0:02:57.1]} 4. e4 {[%clk 0:03:01.2]} 4... e5 {[%clk 0:02:55.8]} 5. dxe5 {[%clk
0:02:59.2]} 5... dxe5 {[%clk 0:02:56.7]} 6. Bg3 {[%clk 0:02:58.4]} 6... Bb4
{[%clk 0:02:56.8]} 7. Bd3 {[%clk 0:02:57.1]} 7... O-O {[%clk 0:02:53.5]} 8. Nf3
{[%clk 0:02:51.8]} 8... Bxc3+ {[%clk 0:02:52.2]} 9. bxc3 {[%clk 0:02:51.4]} 9...
Qe7 {[%clk 0:02:51.5]} 10. O-O {[%clk 0:02:50.8]} 10... b6 {[%clk 0:02:51.1]}
11. Qe2 {[%clk 0:02:50.2]} 11... Bb7 {[%clk 0:02:50.7]} 12. Rad1 {[%clk
0:02:42.4]} 12... Rad8 {[%clk 0:02:49.5]} 13. Rfe1 {[%clk 0:02:36.4]} 13... Rfe8
{[%clk 0:02:42.6]} 14. Bb5 {[%clk 0:02:29.4]} 14... Nxe4 {[%clk 0:02:34.7]} 15.
Qc4 {[%clk 0:02:06.8]} 15... Nxg3 {[%clk 0:02:29.2]} 16. hxg3 {[%clk 0:02:00.2]}
16... c6 {[%clk 0:02:29.5]} 17. Bxc6 {[%clk 0:01:55.3]} 17... Bxc6 {[%clk
0:02:30.4]} 18. Qxc6 {[%clk 0:01:54.4]} 18... Nc5 {[%clk 0:02:30.6]} 19. Rxd8
{[%clk 0:01:51.1]} 19... Qxd8 {[%clk 0:02:31.5]} 20. Rxe5 {[%clk 0:01:44]} 20...
Rxe5 {[%clk 0:02:28.9]} 21. Nxe5 {[%clk 0:01:43.2]} 21... Qd1+ {[%clk
0:02:29.8]} 22. Kh2 {[%clk 0:01:42]} 22... Qh5+ {[%clk 0:02:21.5]} 23. Kg1
{[%clk 0:01:40.5]} 23... h6 {[%clk 0:02:20.9]} 24. Qe8+ {[%clk 0:01:33.7]} 24...
Kh7 {[%clk 0:02:20.4]} 25. g4 {[%clk 0:01:30.1]} 25... Qg5 {[%clk 0:02:16.5]}
26. Nxf7 {[%clk 0:01:23]} 26... Qc1+ {[%clk 0:02:16.4]} 27. Kh2 {[%clk
0:01:22.2]} 27... Qf4+ {[%clk 0:02:15.1]} 28. Kh3 {[%clk 0:01:19.8]} 28... Ne4
{[%clk 0:02:07.4]} 29. g3 {[%clk 0:00:53.4]} 29... Nxf2+ {[%clk 0:02:07.5]} 30.
Kg2 {[%clk 0:00:52.3]} 30... Qe4+ {[%clk 0:02:08]} 31. Qxe4+ {[%clk 0:00:49.3]}
31... Nxe4 {[%clk 0:02:08.9]} 32. c4 {[%clk 0:00:44.2]} 32... Kg6 {[%clk
0:02:09.4]} 33. Ne5+ {[%clk 0:00:43.7]} 33... Kf6 {[%clk 0:02:10.1]} 34. Nc6
{[%clk 0:00:43.9]} 34... a5 {[%clk 0:02:10.1]} 35. Nb8 {[%clk 0:00:35.5]} 35...
Ke6 {[%clk 0:02:05]} 36. Nc6 {[%clk 0:00:32.7]} 36... Nc3 {[%clk 0:02:02.7]} 37.
a3 {[%clk 0:00:30.7]} 37... Kd6 {[%clk 0:02:01.4]} 38. Nd4 {[%clk 0:00:29.3]}
38... Kc5 {[%clk 0:01:58.9]} 39. Ne6+ {[%clk 0:00:27.9]} 39... Kxc4 {[%clk
0:01:59.8]} 40. Nxg7 {[%clk 0:00:28.4]} 40... b5 {[%clk 0:01:57]} 41. Nf5 {[%clk
0:00:28.3]} 41... b4 {[%clk 0:01:50.7]} 42. axb4 {[%clk 0:00:27.5]} 42... a4
{[%clk 0:01:50.6]} 43. b5 {[%clk 0:00:24.8]} 43... Nxb5 {[%clk 0:01:43.6]} 44.
Ne3+ {[%clk 0:00:23.7]} 44... Kc3 {[%clk 0:01:43.7]} 45. Nd5+ {[%clk 0:00:22.4]}
45... Kxc2 {[%clk 0:01:39.3]} 46. Nb4+ {[%clk 0:00:22.4]} 46... Kc3 {[%clk
0:01:39.9]} 47. Nd5+ {[%clk 0:00:22.5]} 47... Kc4 {[%clk 0:01:38]} 48. Nb6+
{[%clk 0:00:21.9]} 48... Kb4 {[%clk 0:01:37.6]} 49. Nxa4 {[%clk 0:00:21.9]}
49... Kxa4 {[%clk 0:01:38.5]} 50. Kh3 {[%clk 0:00:20.9]} 50... Nd6 {[%clk
0:01:30.4]} 51. Kh4 {[%clk 0:00:20.7]} 51... Ne4 {[%clk 0:01:31]} 52. Kh5 {[%clk
0:00:20.7]} 52... Nxg3+ {[%clk 0:01:31.6]} 53. Kxh6 {[%clk 0:00:21]} 53... Ne4
{[%clk 0:01:32.2]} 54. g5 {[%clk 0:00:21.3]} 54... Nxg5 {[%clk 0:01:28.4]}
1/2-1/2

[Event "*** SCC Grand Prix: Titled Tuesday Blitz"]
[Site "Chess.com"]
[Date "2020.06.09"]
[Round "3"]
[White "Gromes7"]
[Black "smshk35"]
[Result "1-0"]
[WhiteElo "2057"]
[BlackElo "2318"]
[TimeControl "180+1"]
[EndTime "9:28:10 PDT"]
[Termination "Gromes7 won by resignation"]

1. d4 {[%clk 0:03:00.8]} 1... Nf6 {[%clk 0:02:59.8]} 2. g3 {[%clk 0:03:00.6]}
2... g6 {[%clk 0:02:59.8]} 3. Bg2 {[%clk 0:03:00.9]} 3... Bg7 {[%clk 0:03:00.3]}
4. Nf3 {[%clk 0:03:01.1]} 4... O-O {[%clk 0:03:00.6]} 5. O-O {[%clk 0:03:01.6]}
5... d6 {[%clk 0:03:01.2]} 6. c4 {[%clk 0:03:02.3]} 6... Nc6 {[%clk 0:03:01.6]}
7. Nc3 {[%clk 0:03:02.9]} 7... e5 {[%clk 0:03:01.2]} 8. h3 {[%clk 0:03:01.8]}
8... Qe7 {[%clk 0:02:49.2]} 9. Be3 {[%clk 0:02:59]} 9... exd4 {[%clk 0:02:43.2]}
10. Nxd4 {[%clk 0:02:58.8]} 10... Ne5 {[%clk 0:02:42.5]} 11. Qb3 {[%clk
0:02:25.6]} 11... Be6 {[%clk 0:02:37.7]} 12. Nd5 {[%clk 0:02:21.8]} 12... Qd7
{[%clk 0:02:22.5]} 13. Nxe6 {[%clk 0:01:54.8]} 13... Qxe6 {[%clk 0:02:22.3]} 14.
Nxc7 {[%clk 0:01:52]} 14... Qxc4 {[%clk 0:02:08.3]} 15. Nxa8 {[%clk 0:01:46.1]}
15... Rxa8 {[%clk 0:02:03.6]} 16. Rac1 {[%clk 0:01:44.6]} 16... Qxe2 {[%clk
0:01:58.1]} 17. Rfe1 {[%clk 0:01:37.1]} 17... Nf3+ {[%clk 0:01:56.1]} 18. Bxf3
{[%clk 0:01:29.3]} 18... Qxf3 {[%clk 0:01:57]} 19. Rc7 {[%clk 0:01:20.4]} 19...
Nd5 {[%clk 0:01:38.6]} 20. Rxb7 {[%clk 0:01:08.6]} 20... Be5 {[%clk 0:01:25.4]}
21. Bh6 {[%clk 0:00:48.3]} 21... Qxb3 {[%clk 0:01:20]} 22. Rxb3 {[%clk
0:00:47.6]} 22... Nb6 {[%clk 0:01:18.7]} 23. f4 {[%clk 0:00:44.9]} 23... Bf6
{[%clk 0:01:13.3]} 24. Bg5 {[%clk 0:00:43.5]} 24... Bxg5 {[%clk 0:01:09.8]} 25.
fxg5 {[%clk 0:00:43.7]} 25... Kf8 {[%clk 0:01:06.2]} 26. Rc3 {[%clk 0:00:41.7]}
26... d5 {[%clk 0:00:56]} 27. Rc7 {[%clk 0:00:40.8]} 27... d4 {[%clk 0:00:56.1]}
28. Rf1 {[%clk 0:00:40]} 28... Nd5 {[%clk 0:00:50.5]} 29. Rcxf7+ {[%clk
0:00:37]} 29... Kg8 {[%clk 0:00:39]} 30. Rd7 {[%clk 0:00:35.1]} 30... Ne3 {[%clk
0:00:38.9]} 31. Rff7 {[%clk 0:00:33.7]} 31... Nf5 {[%clk 0:00:39.2]} 32. g4
{[%clk 0:00:29.5]} 32... Nh4 {[%clk 0:00:38.8]} 33. Rg7+ {[%clk 0:00:27.4]}
33... Kf8 {[%clk 0:00:38.8]} 34. Rxh7 {[%clk 0:00:26.2]} 34... Nf3+ {[%clk
0:00:37.5]} 35. Kg2 {[%clk 0:00:25]} 1-0

[Event "*** SCC Grand Prix: Titled Tuesday Blitz"]
[Site "Chess.com"]
[Date "2020.06.09"]
[Round "3"]
[White "LionTheLeon_06"]
[Black "LyonBeast"]
[Result "0-1"]
[WhiteElo "2687"]
[BlackElo "2955"]
[TimeControl "180+1"]
[EndTime "9:28:12 PDT"]
[Termination "LyonBeast won by resignation"]

1. Nf3 {[%clk 0:03:00.9]} 1... c5 {[%clk 0:02:51.2]} 2. g3 {[%clk 0:03:00.4]}
2... g6 {[%clk 0:02:49.9]} 3. Bg2 {[%clk 0:03:00.3]} 3... Bg7 {[%clk 0:02:49.8]}
4. O-O {[%clk 0:03:00.2]} 4... Nc6 {[%clk 0:02:49.9]} 5. c3 {[%clk 0:03:00.3]}
5... e5 {[%clk 0:02:43.5]} 6. d4 {[%clk 0:03:00.1]} 6... cxd4 {[%clk 0:02:42.6]}
7. cxd4 {[%clk 0:03:00.4]} 7... exd4 {[%clk 0:02:41.7]} 8. Nbd2 {[%clk
0:02:55.8]} 8... Nge7 {[%clk 0:02:41.3]} 9. Nb3 {[%clk 0:02:48.5]} 9... Nf5
{[%clk 0:02:41.2]} 10. g4 {[%clk 0:02:22.6]} 10... Nfe7 {[%clk 0:02:39.7]} 11.
Nfxd4 {[%clk 0:02:22.7]} 11... d5 {[%clk 0:02:37]} 12. g5 {[%clk 0:02:18.4]}
12... O-O {[%clk 0:02:36.5]} 13. Be3 {[%clk 0:02:15.1]} 13... Re8 {[%clk
0:02:33]} 14. Qd2 {[%clk 0:02:13.6]} 14... Ne5 {[%clk 0:02:29.8]} 15. Bf4 {[%clk
0:01:42.4]} 15... Nc4 {[%clk 0:02:19.4]} 16. Qd3 {[%clk 0:01:34.2]} 16... Nxb2
{[%clk 0:02:07.4]} 17. Qg3 {[%clk 0:01:34.1]} 17... Nf5 {[%clk 0:02:04.5]} 18.
Nxf5 {[%clk 0:01:20.1]} 18... Bxf5 {[%clk 0:02:05.4]} 19. e3 {[%clk 0:01:11.9]}
19... Nd3 {[%clk 0:01:56.8]} 20. Rad1 {[%clk 0:01:06.3]} 20... Rc8 {[%clk
0:01:56.4]} 21. Rd2 {[%clk 0:00:39.3]} 21... Nxf4 {[%clk 0:01:47.3]} 22. Qxf4
{[%clk 0:00:36.9]} 22... Rc4 {[%clk 0:01:41.1]} 23. Qg3 {[%clk 0:00:24.3]} 23...
Rg4 {[%clk 0:01:35.7]} 24. Qf3 {[%clk 0:00:23.7]} 24... Qxg5 {[%clk 0:01:33.9]}
25. h3 {[%clk 0:00:17]} 25... Rh4 {[%clk 0:01:23.9]} 26. Qg3 {[%clk 0:00:13.6]}
26... Qxg3 {[%clk 0:01:14.5]} 27. fxg3 {[%clk 0:00:14.5]} 27... Rb4 {[%clk
0:01:11.1]} 28. Bxd5 {[%clk 0:00:14.5]} 28... Bh6 {[%clk 0:01:11.4]} 29. Kg2
{[%clk 0:00:10.4]} 29... Bxe3 {[%clk 0:01:03.9]} 30. Rdd1 {[%clk 0:00:08.5]}
30... Bb6 {[%clk 0:01:00.6]} 31. g4 {[%clk 0:00:08.2]} 31... Be4+ {[%clk
0:00:53.1]} 32. Bxe4 {[%clk 0:00:08.3]} 32... Rbxe4 {[%clk 0:00:54]} 33. Rd7
{[%clk 0:00:06]} 33... Re2+ {[%clk 0:00:53.8]} 34. Kh1 {[%clk 0:00:05.9]} 34...
R8e3 {[%clk 0:00:52.9]} 0-1

[Event "*** SCC Grand Prix: Titled Tuesday Blitz"]
[Site "Chess.com"]
[Date "2020.06.09"]
[Round "3"]
[White "Azoulas1"]
[Black "ARMQUEEN"]
[Result "0-1"]
[WhiteElo "1968"]
[BlackElo "2310"]
[TimeControl "180+1"]
[EndTime "9:28:12 PDT"]
[Termination "ARMQUEEN won by resignation"]

1. e4 {[%clk 0:03:00.9]} 1... c5 {[%clk 0:02:57.1]} 2. Nf3 {[%clk 0:03:00.5]}
2... Nc6 {[%clk 0:02:56.2]} 3. Bb5 {[%clk 0:02:58.4]} 3... g6 {[%clk 0:02:55.7]}
4. c4 {[%clk 0:02:57.1]} 4... Bg7 {[%clk 0:02:54.7]} 5. O-O {[%clk 0:02:53.7]}
5... e5 {[%clk 0:02:47.2]} 6. d3 {[%clk 0:02:48.4]} 6... Nge7 {[%clk 0:02:41.7]}
7. Be3 {[%clk 0:02:46.9]} 7... b6 {[%clk 0:02:36.9]} 8. Ba4 {[%clk 0:02:44.6]}
8... O-O {[%clk 0:02:34.8]} 9. Nc3 {[%clk 0:02:39]} 9... f5 {[%clk 0:02:32.2]}
10. Bc2 {[%clk 0:02:32.3]} 10... Nd4 {[%clk 0:02:28.8]} 11. Bxd4 {[%clk
0:02:25]} 11... exd4 {[%clk 0:02:25.7]} 12. Nd5 {[%clk 0:02:23]} 12... Nc6
{[%clk 0:02:21.6]} 13. Re1 {[%clk 0:02:18.2]} 13... d6 {[%clk 0:02:21.4]} 14. a3
{[%clk 0:02:15.6]} 14... fxe4 {[%clk 0:02:21.2]} 15. Rxe4 {[%clk 0:02:10.9]}
15... Bf5 {[%clk 0:02:21]} 16. Rf4 {[%clk 0:02:00]} 16... Bh6 {[%clk 0:02:18.6]}
17. Rh4 {[%clk 0:01:56.1]} 17... Bg7 {[%clk 0:02:16.6]} 18. Rf4 {[%clk
0:01:53.1]} 18... g5 {[%clk 0:02:11.9]} 19. Rxf5 {[%clk 0:01:46.5]} 19... Rxf5
{[%clk 0:02:12.8]} 20. Ba4 {[%clk 0:01:44.7]} 20... Ne5 {[%clk 0:02:10.6]} 21.
Nxe5 {[%clk 0:01:39.3]} 21... dxe5 {[%clk 0:02:11.5]} 22. Qg4 {[%clk 0:01:37.5]}
22... Rf7 {[%clk 0:02:00.8]} 23. Qe6 {[%clk 0:01:30.6]} 23... Qf8 {[%clk
0:01:42.9]} 24. Bc6 {[%clk 0:01:19.1]} 24... Rd8 {[%clk 0:01:41.5]} 25. Re1
{[%clk 0:01:12.1]} 25... Rd6 {[%clk 0:01:37.6]} 26. Qg4 {[%clk 0:00:59.4]} 26...
Rxc6 {[%clk 0:01:36.1]} 27. Re4 {[%clk 0:00:58.2]} 27... h6 {[%clk 0:01:16.7]}
28. h4 {[%clk 0:00:50.2]} 28... Rxf2 {[%clk 0:01:13.1]} 29. hxg5 {[%clk
0:00:48.1]} 29... Rg6 {[%clk 0:01:10.8]} 30. Ne7+ {[%clk 0:00:40.5]} 30... Qxe7
{[%clk 0:01:09.8]} 31. Kxf2 {[%clk 0:00:38.6]} 31... Rxg5 {[%clk 0:01:10.1]} 32.
Qc8+ {[%clk 0:00:37]} 32... Kh7 {[%clk 0:01:09.7]} 33. Kg1 {[%clk 0:00:32.1]}
33... Qf7 {[%clk 0:01:07.6]} 34. Rh4 {[%clk 0:00:22.3]} 34... Qf3 {[%clk
0:01:02.5]} 35. Rxh6+ {[%clk 0:00:19.5]} 35... Kxh6 {[%clk 0:00:56.6]} 36. Qe6+
{[%clk 0:00:18.6]} 36... Kh7 {[%clk 0:00:54.6]} 37. Qf5+ {[%clk 0:00:14.7]}
37... Qxf5 {[%clk 0:00:53.8]} 0-1

[Event "*** SCC Grand Prix: Titled Tuesday Blitz"]
[Site "Chess.com"]
[Date "2020.06.09"]
[Round "3"]
[White "Efremov_Vlad"]
[Black "witcher8"]
[Result "0-1"]
[WhiteElo "2165"]
[BlackElo "2410"]
[TimeControl "180+1"]
[EndTime "9:28:14 PDT"]
[Termination "witcher8 won on time"]

1. c4 {[%clk 0:03:00.9]} 1... e5 {[%clk 0:02:59.7]} 2. g3 {[%clk 0:03:00.5]}
2... Nc6 {[%clk 0:02:58.6]} 3. Bg2 {[%clk 0:03:00.4]} 3... g6 {[%clk 0:02:58.3]}
4. Nc3 {[%clk 0:02:59.9]} 4... Bg7 {[%clk 0:02:58.8]} 5. d3 {[%clk 0:02:59.3]}
5... f5 {[%clk 0:02:59.2]} 6. e4 {[%clk 0:02:58.7]} 6... d6 {[%clk 0:02:57.9]}
7. Nge2 {[%clk 0:02:58.2]} 7... Nf6 {[%clk 0:02:57.6]} 8. O-O {[%clk 0:02:58]}
8... O-O {[%clk 0:02:57.7]} 9. f4 {[%clk 0:02:57.7]} 9... a5 {[%clk 0:02:53.8]}
10. Kh1 {[%clk 0:02:53.8]} 10... Be6 {[%clk 0:02:53]} 11. Be3 {[%clk 0:02:53.5]}
11... Qd7 {[%clk 0:02:47.7]} 12. Nd5 {[%clk 0:02:49.6]} 12... Rae8 {[%clk
0:02:44.6]} 13. Nec3 {[%clk 0:02:44.5]} 13... Nd4 {[%clk 0:02:38.1]} 14. Nxf6+
{[%clk 0:02:01.9]} 14... Bxf6 {[%clk 0:02:36.2]} 15. Nd5 {[%clk 0:01:59.8]}
15... Bg7 {[%clk 0:02:35.7]} 16. fxe5 {[%clk 0:01:07.7]} 16... Bxe5 {[%clk
0:02:15.6]} 17. Nf4 {[%clk 0:01:06.2]} 17... Bf7 {[%clk 0:02:13.5]} 18. exf5
{[%clk 0:01:05.1]} 18... Nxf5 {[%clk 0:02:12.3]} 19. Bg1 {[%clk 0:01:01]} 19...
c6 {[%clk 0:02:00.9]} 20. Qc2 {[%clk 0:00:58.7]} 20... g5 {[%clk 0:01:53.6]} 21.
Nh3 {[%clk 0:00:51.5]} 21... h6 {[%clk 0:01:47.8]} 22. Rad1 {[%clk 0:00:41.5]}
22... Bg7 {[%clk 0:01:35.7]} 23. d4 {[%clk 0:00:38.7]} 23... Ne3 {[%clk
0:01:30.7]} 24. Bxe3 {[%clk 0:00:37.6]} 24... Rxe3 {[%clk 0:01:31.6]} 25. d5
{[%clk 0:00:27.3]} 25... c5 {[%clk 0:01:29.5]} 26. b3 {[%clk 0:00:17.7]} 26...
Rfe8 {[%clk 0:01:23.9]} 27. Nf2 {[%clk 0:00:17]} 27... Bh5 {[%clk 0:01:18.6]}
28. Rb1 {[%clk 0:00:09.5]} 28... Re2 {[%clk 0:01:09.6]} 29. Qd3 {[%clk
0:00:08.9]} 29... R8e3 {[%clk 0:01:00.6]} 30. Qd1 {[%clk 0:00:08.4]} 30... Qe8
{[%clk 0:00:55.1]} 31. g4 {[%clk 0:00:07.1]} 31... Bg6 {[%clk 0:00:53.9]} 32.
Rc1 {[%clk 0:00:05.8]} 32... Bb2 {[%clk 0:00:48.5]} 0-1

[Event "*** SCC Grand Prix: Titled Tuesday Blitz"]
[Site "Chess.com"]
[Date "2020.06.09"]
[Round "3"]
[White "Y0ung_Capablanca"]
[Black "bsnsun"]
[Result "1/2-1/2"]
[WhiteElo "2735"]
[BlackElo "2461"]
[TimeControl "180+1"]
[EndTime "9:28:18 PDT"]
[Termination "Game drawn by agreement"]

1. d4 {[%clk 0:03:00.9]} 1... Nf6 {[%clk 0:02:59.8]} 2. c4 {[%clk 0:02:59.9]}
2... e6 {[%clk 0:02:59.3]} 3. Nf3 {[%clk 0:03:00.3]} 3... d5 {[%clk 0:02:59]} 4.
g3 {[%clk 0:03:00.6]} 4... dxc4 {[%clk 0:02:55.1]} 5. Bg2 {[%clk 0:03:00.5]}
5... a6 {[%clk 0:02:55.5]} 6. O-O {[%clk 0:02:58.7]} 6... Nc6 {[%clk 0:02:55.4]}
7. Be3 {[%clk 0:02:59.2]} 7... Rb8 {[%clk 0:02:46.9]} 8. Qc1 {[%clk 0:02:58]}
8... b5 {[%clk 0:02:06]} 9. b3 {[%clk 0:02:56.9]} 9... Bb7 {[%clk 0:01:17.5]}
10. bxc4 {[%clk 0:02:54.8]} 10... bxc4 {[%clk 0:01:17.8]} 11. Nbd2 {[%clk
0:02:47.1]} 11... Be7 {[%clk 0:01:11.5]} 12. Nxc4 {[%clk 0:02:45.2]} 12... Nd5
{[%clk 0:01:09.6]} 13. Rb1 {[%clk 0:02:43]} 13... O-O {[%clk 0:01:06.4]} 14. Rd1
{[%clk 0:02:34.1]} 14... Nxe3 {[%clk 0:01:02.7]} 15. Nxe3 {[%clk 0:02:23]} 15...
Nb4 {[%clk 0:01:01]} 16. Rd2 {[%clk 0:02:15.7]} 16... Nd5 {[%clk 0:00:57.8]} 17.
Nc4 {[%clk 0:02:04.3]} 17... Ba8 {[%clk 0:00:52.8]} 18. Rdb2 {[%clk 0:02:00]}
18... Rxb2 {[%clk 0:00:52.2]} 19. Qxb2 {[%clk 0:02:00.9]} 19... Qd7 {[%clk
0:00:51.4]} 20. Nfe5 {[%clk 0:01:59.8]} 20... Qa4 {[%clk 0:00:51.5]} 21. Qb3
{[%clk 0:01:58]} 21... Qxb3 {[%clk 0:00:49.3]} 22. Rxb3 {[%clk 0:01:58.4]} 22...
c5 {[%clk 0:00:47.4]} 23. Nd7 {[%clk 0:01:54.5]} 23... Rd8 {[%clk 0:00:31.4]}
24. Nxc5 {[%clk 0:01:50.4]} 24... h5 {[%clk 0:00:28]} 25. e3 {[%clk 0:01:47.3]}
25... Bc6 {[%clk 0:00:24]} 26. Nb6 {[%clk 0:01:42.6]} 26... Bb5 {[%clk
0:00:17.2]} 27. Nxd5 {[%clk 0:01:40.8]} 27... exd5 {[%clk 0:00:17.5]} 28. a4
{[%clk 0:01:39.9]} 28... Bc4 {[%clk 0:00:18]} 29. Rb6 {[%clk 0:01:34.5]} 29...
Rc8 {[%clk 0:00:18]} 30. Nxa6 {[%clk 0:01:32]} 30... Bd8 {[%clk 0:00:17.4]} 31.
Rd6 {[%clk 0:01:27.5]} 31... Be7 {[%clk 0:00:17.9]} 32. Rd7 {[%clk 0:01:27.2]}
32... Bxa6 {[%clk 0:00:16.6]} 33. Bxd5 {[%clk 0:01:26]} 33... Rc1+ {[%clk
0:00:15.1]} 34. Kg2 {[%clk 0:01:26.4]} 34... Kf8 {[%clk 0:00:14.7]} 35. Ra7
{[%clk 0:01:26.2]} 35... Bf1+ {[%clk 0:00:14.6]} 36. Kf3 {[%clk 0:01:26]} 36...
g6 {[%clk 0:00:14.4]} 37. a5 {[%clk 0:01:25]} 37... Ra1 {[%clk 0:00:14.2]} 38.
a6 {[%clk 0:01:23.7]} 38... Rxa6 {[%clk 0:00:13]} 39. Rxa6 {[%clk 0:01:23.2]}
39... Bxa6 {[%clk 0:00:12.6]} 40. h4 {[%clk 0:01:23]} 40... Bf1 {[%clk
0:00:12.4]} 41. e4 {[%clk 0:01:21.6]} 41... Kg7 {[%clk 0:00:13.3]} 42. Ke3
{[%clk 0:01:21.9]} 42... Bb4 {[%clk 0:00:13.1]} 43. Bb3 {[%clk 0:01:20.8]} 43...
Kf6 {[%clk 0:00:12.9]} 44. e5+ {[%clk 0:01:20.6]} 44... Ke7 {[%clk 0:00:13.5]}
45. d5 {[%clk 0:01:19.5]} 45... Bc5+ {[%clk 0:00:13.9]} 46. Kf3 {[%clk
0:01:19.1]} 46... Bh3 {[%clk 0:00:13.4]} 47. Ke2 {[%clk 0:01:17]} 47... Bg4+
{[%clk 0:00:13]} 48. f3 {[%clk 0:01:17.4]} 48... Bc8 {[%clk 0:00:12.7]} 49. d6+
{[%clk 0:01:17.6]} 49... Ke8 {[%clk 0:00:11.7]} 50. f4 {[%clk 0:01:17.7]}
1/2-1/2

[Event "*** SCC Grand Prix: Titled Tuesday Blitz"]
[Site "Chess.com"]
[Date "2020.06.09"]
[Round "3"]
[White "tamarozi99"]
[Black "ENEASZ"]
[Result "0-1"]
[WhiteElo "2043"]
[BlackElo "2478"]
[TimeControl "180+1"]
[EndTime "9:28:19 PDT"]
[Termination "ENEASZ won by checkmate"]

1. e4 {[%clk 0:03:00.9]} 1... d6 {[%clk 0:02:59.8]} 2. d4 {[%clk 0:03:00.3]}
2... Nf6 {[%clk 0:02:59]} 3. Nc3 {[%clk 0:03:00.4]} 3... e5 {[%clk 0:02:56.7]}
4. dxe5 {[%clk 0:02:57.3]} 4... dxe5 {[%clk 0:02:57.6]} 5. Qxd8+ {[%clk
0:02:57.8]} 5... Kxd8 {[%clk 0:02:58.5]} 6. Nf3 {[%clk 0:02:57.9]} 6... Bd6
{[%clk 0:02:56.8]} 7. Bc4 {[%clk 0:02:57.6]} 7... Ke7 {[%clk 0:02:55.7]} 8. Bg5
{[%clk 0:02:54.6]} 8... Be6 {[%clk 0:02:55.4]} 9. Bd5 {[%clk 0:02:49.7]} 9... c6
{[%clk 0:02:50.3]} 10. Bxe6 {[%clk 0:02:43.7]} 10... Kxe6 {[%clk 0:02:51.2]} 11.
O-O-O {[%clk 0:02:37.2]} 11... Nbd7 {[%clk 0:02:48.6]} 12. Rd2 {[%clk
0:02:17.2]} 12... h6 {[%clk 0:02:45]} 13. Rhd1 {[%clk 0:02:11.3]} 13... Bb4
{[%clk 0:02:42.3]} 14. Bh4 {[%clk 0:01:42.4]} 14... Bxc3 {[%clk 0:02:37.9]} 15.
bxc3 {[%clk 0:01:43.3]} 15... Nc5 {[%clk 0:01:59.9]} 16. Rd6+ {[%clk 0:01:30.1]}
16... Ke7 {[%clk 0:01:59.4]} 17. Nxe5 {[%clk 0:01:25.5]} 17... g5 {[%clk
0:01:53.9]} 18. Bg3 {[%clk 0:01:05.6]} 18... Nfxe4 {[%clk 0:01:53.2]} 19. R6d4
{[%clk 0:00:49.9]} 19... Ke6 {[%clk 0:01:46.3]} 20. Nc4 {[%clk 0:00:24.9]} 20...
b5 {[%clk 0:01:35]} 21. Re1 {[%clk 0:00:19.2]} 21... bxc4 {[%clk 0:01:33.2]} 22.
f3 {[%clk 0:00:19.4]} 22... f5 {[%clk 0:01:31.6]} 23. fxe4 {[%clk 0:00:18.4]}
23... Nxe4 {[%clk 0:01:32.5]} 24. Rxc4 {[%clk 0:00:17.1]} 24... Rhc8 {[%clk
0:01:29.2]} 25. Rd4 {[%clk 0:00:15.8]} 25... Kf6 {[%clk 0:01:26.5]} 26. h4
{[%clk 0:00:11.8]} 26... Re8 {[%clk 0:01:24.6]} 27. hxg5+ {[%clk 0:00:10.9]}
27... hxg5 {[%clk 0:01:25.5]} 28. Bd6 {[%clk 0:00:10.3]} 28... Re6 {[%clk
0:01:22.8]} 29. Ba3 {[%clk 0:00:09.9]} 29... Rh8 {[%clk 0:01:18.6]} 30. Kb2
{[%clk 0:00:09.5]} 30... Rb8+ {[%clk 0:01:17.2]} 31. Kc1 {[%clk 0:00:09.2]}
31... Rb5 {[%clk 0:01:16.1]} 32. Bb2 {[%clk 0:00:08.8]} 32... Kg6 {[%clk
0:01:15.3]} 33. c4 {[%clk 0:00:08.9]} 33... Ra5 {[%clk 0:01:15.6]} 34. Kb1
{[%clk 0:00:08.1]} 34... Ra4 {[%clk 0:01:15.5]} 35. Red1 {[%clk 0:00:06.5]}
35... c5 {[%clk 0:01:12.4]} 36. Rd8 {[%clk 0:00:06.4]} 36... Rxc4 {[%clk
0:01:11.7]} 37. Rg8+ {[%clk 0:00:06.4]} 37... Kh5 {[%clk 0:01:11.8]} 38. Rh1+
{[%clk 0:00:05.3]} 38... Kg4 {[%clk 0:01:12]} 39. Rg1 {[%clk 0:00:01.3]} 39...
Rb6 {[%clk 0:01:06.6]} 40. Rh8 {[%clk 0:00:01.5]} 40... Rcb4 {[%clk 0:01:06.2]}
41. Kc1 {[%clk 0:00:01.6]} 41... Rxb2 {[%clk 0:01:06.1]} 42. g3 {[%clk
0:00:02.1]} 42... Rb1# {[%clk 0:01:07]} 0-1